bitfinex-derivatives/quotes_SOLF0:USTF0_20250613
["timestamp","ask_amount","ask_price","bid_price","bid_amount"]
[1749782035901,5.91263494,142.74,142.73,7.05155039]
[1749782036105,44.22,142.75,142.73,0.05035039]
[1749782036497,156.41156834,142.74,142.66,4.0]
[1749782036699,7.0033,142.7,142.66,11.0044]
[1749782037003,150.48,142.69,142.66,11.0044]
[1749782037403,150.48,142.69,142.67,7.0043]
[1749782037598,157.53114133,142.69,142.67,0.0462807]
[1749782037900,18.23316423,142.68,142.66,4.0]
[1749782038104,5.91223891,142.67,142.66,4.0]
[1749782038310,12.91663891,142.67,142.66,4.0]
[1749782040209,14.97930984,142.67,142.64,19.52]
[1749782040404,49.91223891,142.66,142.64,19.52]
[1749782040610,5.91223891,142.65,142.64,19.52]
[1749782041313,5.91223891,142.65,142.63,0.05183827]
[1749782041314,20.94252945,142.65,142.63,0.05183827]
[1749782041515,156.35223891,142.64,142.63,0.05183827]
[1749782042009,166.07936613,142.64,142.48,44.0]
[1749782042209,12.32092532,142.6,142.52,4.6089]
[1749782042408,200.33223891,142.59,142.52,4.6089]
[1749782042709,194.42,142.59,142.52,4.6089]
[1749782042907,5.94093282,142.58,142.54,0.0522917]
[1749782043112,0.04908947,142.57,142.56,7.0098]
[1749782043802,0.04908947,142.57,142.54,0.0522917]
[1749782044112,12.32092532,142.56,142.54,18.6022917]
[1749782044316,49.89903591,142.55,142.54,18.6022917]
[1749782044713,44.0,142.55,142.54,18.6022917]
[1749782045215,56.90571726,142.55,142.54,18.6022917]
[1749782045610,44.0,142.55,142.54,18.6022917]
[1749782046017,0.04908947,142.57,142.54,18.6022917]
[1749782046610,0.04908947,142.57,142.54,25.6126917]
[1749782047011,0.04908947,142.57,142.54,18.6022917]
[1749782047517,44.0,142.59,142.54,18.6022917]
[1749782047719,194.46,142.62,142.55,4.6651]
[1749782048012,44.02,142.62,142.55,16.98602532]
[1749782048221,403.74,142.68,142.55,16.98602532]
[1749782048222,44.02,142.65,142.59,12.32092532]
[1749782048515,0.05051931,142.63,142.61,0.05386625]
[1749782048910,19.32772532,142.62,142.61,0.05386625]
[1749782049112,27.89152091,142.62,142.61,0.05386625]
[1749782049308,30.13868273,142.62,142.61,0.05386625]
[1749782049506,19.91069337,142.62,142.61,0.05386625]
[1749782049713,12.32092532,142.62,142.61,0.05386625]
[1749782050013,14.99170494,142.62,142.61,0.05386625]
[1749782050215,19.9112427,142.62,142.61,0.05386625]
[1749782050418,25.80490195,142.62,142.61,0.05386625]
[1749782050614,23.13377876,142.62,142.61,0.05386625]
[1749782050819,2.67156689,142.62,142.61,0.05386625]
[1749782051021,0.05051931,142.63,142.61,0.05386625]
[1749782051916,0.05051931,142.63,142.62,7.0068]
[1749782052917,0.05051931,142.63,142.61,7.06106625]
[1749782053114,0.05051931,142.63,142.61,0.05386625]
[1749782053622,0.05051931,142.63,142.62,7.0068]
[1749782054315,0.05051931,142.63,142.62,11.0068]
[1749782055616,403.74,142.68,142.64,7.0059]
[1749782055823,598.08,142.68,142.63,2.3417]
[1749782056226,150.32,142.67,142.64,7.0058]
[1749782056421,150.32,142.67,142.63,2.3417]
[1749782056619,0.04621299,142.66,142.64,0.05192068]
[1749782056823,0.04621299,142.66,142.65,7.0054]
[1749782057020,44.02,142.71,142.64,2.36482068]
[1749782057327,194.32,142.71,142.64,2.36482068]
[1749782057624,44.02,142.71,142.64,14.685746]
[1749782057820,194.32,142.74,142.64,58.705746]
[1749782058020,0.04813484,142.7,142.68,0.05122022]
[1749782058919,206.64092532,142.74,142.68,0.05122022]
[1749782058920,44.02,142.74,142.68,0.05122022]
[1749782059128,44.02,142.74,142.68,12.37214554]
[1749782059822,403.7,142.76,142.68,12.37214554]
[1749782060029,44.0,142.77,142.71,0.05276374]
[1749782060325,44.0,142.77,142.76,7.0]
[1749782061021,44.0,142.77,142.75,0.05163934]
[1749782061229,12.32092532,142.76,142.75,0.05163934]
[1749782061525,19.32092532,142.76,142.75,0.05163934]
[1749782061716,150.24,142.78,142.75,0.05163934]
[1749782061915,44.0,142.81,142.77,6.9994]
[1749782062125,150.2,142.8,142.77,6.9994]
[1749782062324,44.0,142.81,142.75,0.68163934]
[1749782062719,194.18,142.81,142.75,0.68163934]
[1749782063326,194.18,142.81,142.79,6.9983]
[1749782063625,194.18,142.81,142.79,7.04752679]
[1749782063823,44.0,142.81,142.8,6.998]
[1749782064024,403.64,142.83,142.79,0.04922679]
[1749782064331,12.32092532,142.82,142.79,0.04922679]
[1749782064724,150.12,142.81,142.79,0.04922679]
[1749782064920,150.12,142.81,142.8,6.998]
[1749782065230,150.12,142.82,142.79,0.04922679]
[1749782065725,150.12,142.82,142.81,6.9975]
[1749782065925,553.76,142.83,142.81,6.9975]
[1749782066432,403.64,142.83,142.82,6.997]
[1749782066621,553.76,142.83,142.82,6.997]
[1749782066824,150.12,142.83,142.82,6.997]
[1749782067127,194.1,142.84,142.83,6.9965]
[1749782067321,44.0,142.84,142.83,6.9965]
[1749782067524,201.0961,142.84,142.82,0.04784566]
[1749782067728,12.32092532,142.83,142.82,0.04784566]
[1749782067924,201.0961,142.84,142.82,0.04784566]
[1749782068126,194.1,142.84,142.82,0.04784566]
[1749782068826,213.41702532,142.84,142.82,0.04784566]
[1749782069030,206.42092532,142.84,142.82,4.04784566]
[1749782069433,213.41702532,142.84,142.82,4.04784566]
[1749782069627,1.21878612,142.86,142.82,4.04784566]
[1749782069830,150.04,142.87,142.82,4.04784566]
[1749782070431,43.98,142.88,142.82,4.04784566]
[1749782070622,194.02,142.88,142.83,4.5284]
[1749782070830,43.98,142.88,142.87,6.9946]
[1749782071030,43.76,142.91,142.86,0.04743303]
[1749782071228,150.0,142.91,142.87,0.04414797]
[1749782071426,43.76,142.92,142.91,6.9926]
[1749782071630,193.76,142.92,142.9,0.04988913]
[1749782071932,43.76,142.92,142.91,6.9926]
[1749782072135,193.76,142.92,142.9,0.04925396]
[1749782072635,43.76,142.92,142.91,6.9926]
[1749782072827,150.0,142.93,142.9,0.04925396]
[1749782073634,150.0,142.93,142.92,6.9921]
[1749782074539,19.25910646,142.94,142.9,0.04925396]
[1749782074732,149.94,142.93,142.9,0.04925396]
[1749782075227,12.26760646,142.92,142.9,0.04925396]
[1749782075735,43.74,142.91,142.83,4.5284]
[1749782075932,12.26760646,142.88,142.83,4.5284]
[1749782076133,200.6549,142.87,142.83,11.5246]
[1749782076335,12.26760646,142.86,142.82,4.0]
[1749782076838,0.04840058,142.85,142.83,0.05255032]
[1749782077230,193.66,142.87,142.86,6.9951]
[1749782077629,193.66,142.87,142.83,0.05255032]
[1749782077829,149.92,142.87,142.83,0.05255032]
[1749782078136,43.74,142.9,142.83,2.46755032]
[1749782078340,43.74,142.9,142.85,0.04619237]
[1749782078937,43.74,142.9,142.88,6.9937]
[1749782080532,43.74,142.9,142.86,2.3393]
[1749782080733,56.01743063,142.9,142.85,0.67619237]
[1749782081135,43.74,142.9,142.86,6.9948]
[1749782081437,43.74,142.9,142.85,0.67619237]
[1749782081638,50.7335,142.9,142.86,6.9949]
[1749782082039,43.74,142.9,142.85,0.67619237]
[1749782082540,205.81743063,142.93,142.85,0.67619237]
[1749782082741,205.81743063,142.93,142.87,6.9942]
[1749782083044,12.27743063,142.91,142.89,0.05009347]
[1749782083245,6.9931,142.9,142.89,0.05009347]
[1749782083445,12.27743063,142.91,142.89,19.46009347]
[1749782084044,12.27743063,142.91,142.89,23.46009347]
[1749782084442,149.8,142.9,142.89,23.46009347]
[1749782084741,162.07604838,142.9,142.85,0.63]
[1749782084946,12.27604838,142.86,142.85,0.63]
[1749782085142,19.27114838,142.86,142.85,0.63]
[1749782086439,19.27114838,142.86,142.85,4.63]
[1749782087348,0.04784375,142.87,142.85,4.63]
[1749782087851,12.28314927,142.86,142.85,4.63]
[1749782088050,0.04784375,142.87,142.85,4.63]
[1749782088242,12.28314927,142.86,142.85,4.63]
[1749782089449,19.27824927,142.86,142.85,4.63]
[1749782090051,12.28314927,142.86,142.85,4.63]
[1749782090256,0.04784375,142.87,142.85,4.63]
[1749782090549,0.04784375,142.87,142.86,6.9951]
[1749782091761,43.72,142.92,142.89,6.9933]
[1749782091962,43.72,142.92,142.85,4.63]
[1749782092164,14.92486058,142.91,142.85,4.63]
[1749782092360,7.93206058,142.91,142.85,4.63]
[1749782092560,43.72,142.92,142.85,4.63]
[1749782092860,43.72,142.92,142.89,6.9934]
[1749782093059,43.72,142.92,142.87,0.04656721]
[1749782093260,12.27641661,142.91,142.87,0.04656721]
[1749782093462,12.27641661,142.89,142.87,0.04656721]
[1749782093656,61.97830603,142.88,142.85,4.63]
[1749782093857,19.27833201,142.86,142.85,4.63]
[1749782094157,218.67340603,142.86,142.85,4.63]
[1749782094560,218.67340603,142.86,142.85,4.0]
[1749782095964,206.39017402,142.86,142.85,4.0]
[1749782096163,199.39507402,142.86,142.85,4.0]
[1749782096466,49.69507402,142.86,142.85,4.0]
[1749782096660,49.70495721,142.86,142.85,10.9956]
[1749782096864,49.70495721,142.86,142.85,4.0]
[1749782097857,49.70495721,142.86,142.85,10.9956]
[1749782098061,49.70495721,142.86,142.85,4.0]
[1749782099265,54.76460062,142.86,142.85,0.50186431]
[1749782099470,56.09680204,142.86,142.85,0.50186431]
[1749782099662,63.91291709,142.86,142.85,0.50186431]
[1749782099863,56.09680204,142.86,142.85,0.50186431]
[1749782100064,49.70495721,142.86,142.84,0.05124946]
[1749782100264,26.87122036,142.85,142.82,6.43]
[1749782100470,12.28502645,142.83,142.82,6.43]
[1749782100665,176.53122036,142.83,142.74,4.5374]
[1749782100868,12.28502645,142.77,142.69,6.9538]
[1749782101074,12.28502645,142.75,142.69,6.9538]
[1749782101264,0.04451615,142.73,142.71,0.04561092]
[1749782101667,50.04072331,142.78,142.71,0.04561092]
[1749782101970,6.02791235,142.77,142.73,12.28502645]
[1749782102268,50.04072331,142.81,142.75,12.28502645]
[1749782102569,25.78944026,142.79,142.77,0.05028093]
[1749782102771,7.82253928,142.78,142.77,0.04914711]
[1749782102961,16.43683702,142.78,142.77,0.04914711]
[1749782103162,14.82037051,142.78,142.77,0.01014783]
[1749782103361,16.36030415,142.78,142.77,0.01014783]
[1749782103572,7.72952546,142.78,142.77,0.01014783]
[1749782103762,7.72955151,142.78,142.73,4.0]
[1749782103961,20.92026249,142.74,142.73,4.0]
[1749782104569,19.28602645,142.74,142.73,4.0]
[1749782104766,12.28502645,142.74,142.73,4.0]
[1749782104972,20.92026249,142.74,142.73,4.0]
[1749782105272,8.68240446,142.75,142.73,4.0]
[1749782105474,6.47429871,142.74,142.73,4.0]
[1749782105775,0.04716842,142.75,142.73,4.0]
[1749782105975,7.72673624,142.74,142.73,4.0]
[1749782106176,6.52146713,142.75,142.73,4.0]
[1749782106377,0.04716842,142.75,142.73,4.0]
[1749782107978,43.58,142.77,142.73,4.0]
[1749782108279,7.71159361,142.76,142.74,2.3179]
[1749782108470,2.73949328,142.75,142.74,2.3179]
[1749782108670,7.71179427,142.75,142.74,2.3179]
[1749782109070,7.7118601,142.75,142.74,2.3179]
[1749782109272,7.71145073,142.75,142.74,9.3185]
[1749782109473,7.71230982,142.75,142.74,9.3185]
[1749782109669,7.7142239,142.75,142.74,9.3185]
[1749782109873,2.7409058,142.75,142.74,9.3185]
[1749782110072,0.04412513,142.76,142.75,7.0005]
[1749782110476,403.1,142.79,142.78,6.999]
[1749782110676,193.3,142.8,142.74,2.3179]
[1749782111375,200.2983,142.8,142.74,2.3179]
[1749782111577,193.3,142.8,142.76,0.04720236]
[1749782111776,43.6,142.8,142.76,0.04720236]
[1749782112086,43.6,142.83,142.76,0.04720236]
[1749782112379,193.3,142.83,142.78,0.04902568]
[1749782112580,12.28903322,142.81,142.78,0.04902568]
[1749782112780,12.28903322,142.79,142.78,0.04902568]
[1749782112983,43.6,142.79,142.78,0.04902568]
[1749782113880,43.6,142.79,142.78,7.04802568]
[1749782114078,43.6,142.79,142.78,11.04802568]
[1749782114281,43.6,142.79,142.78,4.04902568]
[1749782114980,43.6,142.79,142.78,11.04802568]
[1749782115884,61.87491228,142.79,142.78,4.04902568]
[1749782116372,68.87341228,142.79,142.78,4.04902568]
[1749782118482,61.87491228,142.79,142.78,4.04902568]
[1749782118876,43.6,142.79,142.78,4.04902568]
[1749782119074,49.5729779,142.79,142.78,4.04902568]
[1749782119278,43.6,142.79,142.78,4.04902568]
[1749782120785,43.6,142.79,142.78,11.04802568]
[1749782121382,43.6,142.82,142.78,4.04902568]
[1749782121883,43.6,142.82,142.79,6.9984]
[1749782122081,43.6,142.82,142.78,4.04902568]
[1749782122682,43.6,142.82,142.79,6.9984]
[1749782122883,43.6,142.82,142.78,4.04902568]
[1749782123582,12.2979152,142.8,142.78,4.04902568]
[1749782123874,6.9985,142.79,142.78,4.04902568]
[1749782124487,12.99032423,142.79,142.78,4.04902568]
[1749782126383,5.99182423,142.79,142.78,4.04902568]
[1749782126587,149.62,142.81,142.78,4.04902568]
[1749782126988,193.22,142.82,142.78,4.04902568]
[1749782127188,5.99608864,142.81,142.78,4.04902568]
[1749782127382,43.6,142.85,142.78,4.04902568]
[1749782127585,43.6,142.85,142.79,2.2584]
[1749782127786,50.5956,142.85,142.79,4.5623]
[1749782128282,43.6,142.85,142.79,4.5623]
[1749782128483,12.99724996,142.84,142.79,4.5623]
[1749782128689,6.00280451,142.83,142.78,4.04902568]
[1749782128989,12.99960451,142.83,142.78,4.04902568]
[1749782129188,6.9968,142.83,142.78,4.04902568]
[1749782129382,6.9976,142.81,142.78,11.04782568]
[1749782129686,12.2979152,142.84,142.78,4.04902568]
[1749782129882,5.99204396,142.83,142.78,4.04902568]
[1749782130089,50.5958,142.85,142.78,4.04902568]
[1749782130288,5.99189372,142.84,142.78,4.04902568]
[1749782130489,5.99189372,142.84,142.81,6.9972]
[1749782130795,12.2979152,142.83,142.81,0.04505436]
[1749782130985,5.99189372,142.82,142.81,0.04505436]
[1749782131180,12.98889372,142.82,142.81,0.04505436]
[1749782133994,6.997,142.82,142.81,0.04505436]
[1749782134694,12.97848092,142.82,142.81,0.04505436]
[1749782135293,20.92119322,142.82,142.81,0.04505436]
[1749782135488,13.92419322,142.82,142.78,4.0]
[1749782135790,7.9427123,142.79,142.78,4.0]
[1749782135991,14.9412123,142.79,142.78,4.0]
[1749782136197,20.92490865,142.79,142.78,4.0]
[1749782137397,13.92640865,142.79,142.78,4.0]
[1749782137691,21.37919639,142.79,142.78,4.0]
[1749782137897,23.06449656,142.79,142.71,2.2274]
[1749782138098,7.9427123,142.74,142.69,2.1984]
[1749782138394,4.78090218,142.73,142.69,2.1984]
[1749782138592,193.1,142.74,142.69,2.1984]
[1749782138794,193.1,142.74,142.73,7.0014]
[1749782138993,0.04538178,142.75,142.72,0.04542075]
[1749782139591,6.4675329,142.82,142.72,7.98813305]
[1749782139797,43.52,142.8,142.73,2.2749]
[1749782139998,7.45461216,142.79,142.73,2.2749]
[1749782140196,43.52,142.8,142.78,6.999]
[1749782140500,2.67166776,142.79,142.74,2.3953]
[1749782140700,43.52,142.8,142.78,6.9988]
[1749782140900,43.57192661,142.8,142.78,6.9988]
[1749782141095,7.45471162,142.79,142.75,0.0491234]
[1749782141398,50.56992661,142.8,142.77,6.9992]
[1749782141601,43.57192661,142.8,142.75,0.0491234]
[1749782142001,43.57192661,142.8,142.77,6.9991]
[1749782142195,43.57192661,142.8,142.75,0.0491234]
[1749782143105,50.57012661,142.8,142.77,6.9992]
[1749782143298,43.57192661,142.8,142.75,0.0491234]
[1749782143502,12.29163678,142.77,142.75,0.0491234]
[1749782143702,63.96872742,142.76,142.75,0.0491234]
[1749782144002,56.95339526,142.76,142.72,4.0]
[1749782144197,12.29163678,142.73,142.72,4.0]
[1749782144503,179.61527095,142.73,142.72,4.0]
[1749782144706,182.28614497,142.73,142.72,4.0]
[1749782144911,7.0019,142.72,142.71,0.05079445]
[1749782145199,7.0019,142.72,142.58,149.28118308]
[1749782145200,75.72405782,142.72,142.58,149.28118308]
[1749782145395,19.29533678,142.69,142.65,7.0051]
[1749782145595,43.52,142.68,142.65,7.0051]
[1749782145800,43.52,142.68,142.61,2.2424]
[1749782146000,43.52,142.68,142.63,0.05043241]
[1749782146001,0.04501695,142.66,142.63,0.05043241]
[1749782146302,43.52,142.71,142.63,0.05043241]
[1749782146899,43.52,142.71,142.7,7.0029]
[1749782148593,0.04778729,142.72,142.71,7.0024]
[1749782148999,8.729e-05,142.72,142.71,7.0024]
[1749782153612,149.54008729,142.72,142.7,7.0027]
[1749782153805,149.54008729,142.72,142.69,0.0532417]
[1749782154007,149.54008729,142.72,142.7,7.0026]
[1749782155409,149.54008729,142.72,142.69,7.0564417]
[1749782155616,149.54008729,142.72,142.69,0.0532417]
[1749782156107,156.54228729,142.72,142.69,7.0563417]
[1749782156304,5.9520832,142.71,142.69,0.0532417]
[1749782156504,12.30068128,142.7,142.69,0.0532417]
[1749782156709,25.25566448,142.7,142.69,0.0532417]
[1749782157307,7.0036,142.69,142.66,7.0046]
[1749782157513,7.0036,142.69,142.65,7.0052]
[1749782157514,43.54,142.68,142.65,7.0052]
[1749782157814,7.0045,142.67,142.63,4.0]
[1749782158015,55.84068128,142.68,142.63,4.0]
[1749782158513,0.04794628,142.67,142.66,7.0049]
[1749782160917,43.48794628,142.67,142.66,7.0049]
[1749782162116,48.2312679,142.67,142.66,7.0049]
[1749782162422,46.14377676,142.67,142.66,7.0049]
[1749782162614,46.1437231,142.67,142.66,7.0049]
[1749782163013,2.31e-05,142.67,142.66,7.0049]
[1749782163219,5.91568055,142.72,142.66,7.94919195]
[1749782163421,43.44,142.74,142.67,2.2029]
[1749782163624,7.94919195,142.71,142.63,4.0]
[1749782163822,7.94919195,142.69,142.63,4.0]
[1749782164119,0.05065872,142.67,142.66,7.0049]
[1749782164327,5.872e-05,142.67,142.66,7.0049]
[1749782169040,5.872e-05,142.67,142.66,14.95842129]
[1749782169442,5.872e-05,142.67,142.66,7.0049]
[1749782169833,5.872e-05,142.67,142.66,9.3521]
[1749782170429,5.872e-05,142.67,142.66,7.0049]
[1749782173541,5.872e-05,142.67,142.65,0.05131286]
[1749782174134,5.872e-05,142.67,142.66,7.0049]
[1749782174330,7.95451528,142.67,142.65,4.05131286]
[1749782174836,4.75672996,142.66,142.65,4.05131286]
[1749782175241,4.7563727,142.66,142.65,4.05131286]
[1749782175433,7.95451528,142.67,142.65,4.05131286]
[1749782175635,12.92858669,142.66,142.65,4.05131286]
[1749782176136,17.68630003,142.66,142.65,4.05131286]
[1749782176538,10.68229385,142.66,142.65,4.05131286]
[1749782176736,14.95901528,142.67,142.65,4.05131286]
[1749782177041,7.95451528,142.67,142.65,4.05131286]
[1749782177944,14.95891528,142.67,142.65,4.05131286]
[1749782178146,7.95451528,142.67,142.65,4.05131286]
[1749782178644,7.0049,142.66,142.65,4.05131286]
[1749782179039,7.95451528,142.67,142.65,11.05621286]
[1749782179343,5.872e-05,142.67,142.65,4.05131286]
[1749782179744,5.872e-05,142.67,142.66,7.0049]
[1749782179944,5.872e-05,142.67,142.65,4.05131286]
[1749782180338,5.872e-05,142.67,142.65,11.05641286]
[1749782180937,5.872e-05,142.67,142.65,4.05131286]
[1749782182236,5.872e-05,142.67,142.65,12.0063032]
[1749782182545,5.872e-05,142.67,142.66,11.5119]
[1749782183433,7.95504906,142.67,142.65,4.05131286]
[1749782183841,14.95964906,142.67,142.65,4.05131286]
[1749782184042,7.95504906,142.67,142.65,4.05131286]
[1749782184344,7.0049,142.66,142.65,4.05131286]
[1749782184845,5.872e-05,142.67,142.65,4.05131286]
[1749782185246,7.95504906,142.67,142.65,4.05131286]
[1749782186738,5.872e-05,142.67,142.65,4.05131286]
[1749782186942,12.92431246,142.67,142.65,4.05131286]
[1749782187142,5.872e-05,142.67,142.65,4.05131286]
[1749782187544,13.87826837,142.67,142.65,4.05131286]
[1749782187745,5.9246767,142.66,142.65,4.05131286]
[1749782188140,12.9295767,142.66,142.65,4.05131286]
[1749782189547,163.28679791,142.66,142.57,4.6395]
[1749782189844,5.9246767,142.65,142.58,7.96212121]
[1749782190041,43.46,142.68,142.6,7.96212121]
[1749782190236,5.92649933,142.67,142.6,7.96212121]
[1749782190441,43.46,142.68,142.6,7.96212121]
[1749782190442,0.04801401,142.65,142.62,0.04735235]
[1749782190644,0.04801401,142.65,142.64,7.0059]
[1749782191250,43.46,142.68,142.67,7.0044]
[1749782191742,43.46,142.68,142.67,11.0044]
[1749782192950,0.02530279,142.69,142.68,7.0039]
[1749782193341,5.91069948,142.7,142.67,4.0]
[1749782193651,43.34,142.75,142.7,7.0029]
[1749782193840,5.90889145,142.74,142.7,7.0029]
[1749782194044,12.91009145,142.74,142.68,7.9475949]
[1749782194246,43.34,142.75,142.68,7.9475949]
[1749782194449,43.34,142.75,142.7,0.04698497]
[1749782194747,43.34,142.75,142.73,7.0011]
[1749782194943,21.4141278,142.79,142.7,7.99457987]
[1749782195138,5.91084746,142.78,142.73,0.04926095]
[1749782195343,5.91084746,142.77,142.73,0.04926095]
[1749782195551,43.34,142.79,142.73,0.04926095]
[1749782195746,5.91319795,142.78,142.73,0.04926095]
[1749782196148,43.34,142.79,142.77,6.9995]
[1749782196348,43.34,142.79,142.77,0.04747617]
[1749782198441,43.34,142.85,142.77,7.98546803]
[1749782198644,43.34,142.85,142.8,0.0532957]
[1749782198844,51.27799186,142.85,142.8,0.0532957]
[1749782199046,7.93799186,142.83,142.8,0.0532957]
[1749782199240,14.93549186,142.81,142.8,0.0532957]
[1749782199445,43.34,142.81,142.8,0.0532957]
[1749782199750,43.32,142.84,142.8,0.0532957]
[1749782200139,43.32,142.84,142.81,6.9972]
[1749782200340,43.32,142.84,142.8,0.0532957]
[1749782200744,43.32,142.84,142.81,6.9972]
[1749782201148,43.32,142.84,142.8,0.0532957]
[1749782201350,43.32,142.84,142.81,6.9974]
[1749782202045,43.32,142.84,142.82,6.9969]
[1749782202249,43.32,142.84,142.8,0.0532957]
[1749782202748,43.32,142.84,142.8,2.3118957]
[1749782203250,43.32,142.87,142.81,7.93799186]
[1749782203454,43.32,142.87,142.86,6.9951]
[1749782203748,51.25799186,142.87,142.83,0.04834128]
[1749782204049,7.93799186,142.85,142.83,0.04834128]
[1749782204250,6.9954,142.86,142.83,0.04834128]
[1749782204449,51.25799186,142.87,142.83,0.04834128]
[1749782204650,43.32,142.9,142.83,0.04834128]
[1749782204849,43.32,142.9,142.85,0.05130155]
[1749782205050,43.32,142.9,142.87,6.9944]
[1749782205250,43.32,142.9,142.85,0.05130155]
[1749782206150,2.81301111,142.89,142.86,6.995]
[1749782206363,2.81285554,142.88,142.85,0.05130155]
[1749782206543,7.93253054,142.88,142.85,0.05130155]
[1749782206743,9.80729893,142.87,142.85,0.05130155]
[1749782206952,2.81236059,142.86,142.85,0.05130155]
[1749782207254,6.9938,142.89,142.86,6.9949]
[1749782207452,2.81274385,142.88,142.85,0.05130155]
[1749782207646,2.81274385,142.87,142.85,0.05130155]
[1749782207847,7.93253054,142.88,142.85,0.05130155]
[1749782208156,2.81305157,142.87,142.85,0.05130155]
[1749782208358,46.11305157,142.86,142.85,0.05130155]
[1749782208549,43.3,142.86,142.85,0.05130155]
[1749782208746,46.11295322,142.86,142.85,7.04690155]
[1749782208951,43.3,142.89,142.85,0.05130155]
[1749782209156,2.81325024,142.88,142.86,4.0]
[1749782209457,2.83667116,142.87,142.86,4.0]
[1749782209655,2.83686222,142.87,142.86,4.0]
[1749782209855,43.3,142.89,142.86,4.0]
[1749782210055,2.83700671,142.88,142.86,4.0]
[1749782210259,2.8366203,142.87,142.86,4.0]
[1749782210456,199.394,142.89,142.86,4.0]
[1749782210653,2.8369402,142.88,142.86,4.0]
[1749782210847,2.8369402,142.87,142.86,4.0]
[1749782211257,9.83127819,142.87,142.86,4.0]
[1749782211454,9.83129488,142.87,142.86,4.0]
[1749782211658,9.83126933,142.87,142.86,4.0]
[1749782211958,9.83119114,142.87,142.86,4.0]
[1749782212155,6.9946,142.87,142.86,4.0]
[1749782212453,6.9946,142.87,142.86,0.6903]
[1749782212660,6.9951,142.86,142.85,0.05130155]
[1749782212860,14.92722592,142.86,142.85,0.05130155]
[1749782213252,7.93212592,142.86,142.77,2.2246]
[1749782213453,7.93212592,142.81,142.77,2.2246]
[1749782213655,149.06,142.82,142.77,2.2246]
[1749782214161,0.04684133,142.81,142.8,6.9977]
[1749782214766,0.04684133,142.81,142.8,10.9977]
[1749782214959,0.04684133,142.81,142.8,4.0]
[1749782215459,2.87834133,142.81,142.8,4.0]
[1749782215659,0.04684133,142.81,142.8,4.0]
[1749782215847,0.04684133,142.81,142.8,10.998]
[1749782216461,0.04684133,142.81,142.8,4.0]
[1749782217160,58.28239098,142.81,142.8,4.0]
[1749782217458,51.28489098,142.81,142.78,0.04527376]
[1749782217656,51.28489098,142.81,142.69,7.93804965]
[1749782217657,6.9997,142.77,142.73,7.0012]
[1749782217854,51.23804965,142.77,142.7,4.4799]
[1749782218054,7.93804965,142.75,142.7,4.4799]
[1749782218457,7.93804965,142.73,142.68,2.3586]
[1749782218758,0.05283627,142.72,142.69,0.04667741]
[1749782218958,0.05283627,142.72,142.7,7.0029]
[1749782219460,0.05283627,142.72,142.69,7.04987741]
[1749782219651,0.05283627,142.72,142.7,4.0]
[1749782219858,7.93804965,142.71,142.7,4.0]
[1749782220059,14.94044965,142.71,142.7,4.0]
[1749782220661,10.76530169,142.71,142.58,7.93804965]
[1749782220857,7.93804965,142.65,142.6,4.6276]
[1749782221064,51.09804965,142.65,142.6,4.6276]
[1749782221365,43.16,142.65,142.6,4.6276]
[1749782221664,0.05200731,142.64,142.63,7.0061]
[1749782221963,7.99005696,142.64,142.61,0.04884615]
[1749782222557,0.05200731,142.64,142.61,0.04884615]
[1749782222758,0.05200731,142.64,142.61,4.04884615]
[1749782223464,43.16,142.68,142.61,4.04884615]
[1749782223658,43.16,142.68,142.66,7.0046]
[1749782224053,43.16,142.68,142.62,2.3282]
[1749782224256,7.93804965,142.67,142.62,2.3282]
[1749782224455,7.93804965,142.65,142.64,0.04874834]
[1749782225359,7.93804965,142.65,142.61,4.0]
[1749782225562,43.18,142.64,142.61,4.0]
[1749782226361,43.18,142.64,142.61,4.04715782]
[1749782227261,0.04699192,142.66,142.61,4.04715782]
[1749782227464,0.04699192,142.66,142.62,7.95889267]
[1749782228065,0.04699192,142.66,142.65,7.0054]
[1749782228264,43.2,142.7,142.64,7.95889267]
[1749782228466,43.2,142.7,142.63,2.2318]
[1749782228467,43.2,142.7,142.66,7.95889267]